bitfinex/quotes_BTCUSD_20241004
["timestamp","ask_amount","ask_price","bid_price","bid_amount"]
[1728010036955,0.31708524,61180.0,61179.0,0.095919]
[1728010037178,0.177452,61180.0,61179.0,0.095919]
[1728010037909,0.16345,61181.0,61179.0,0.095919]
[1728010038346,0.273452,61180.0,61179.0,0.095919]
[1728010038575,0.287452,61180.0,61179.0,0.095919]
[1728010039022,0.273452,61180.0,61179.0,0.095919]
[1728010039469,0.263452,61180.0,61179.0,0.095919]
[1728010039690,0.277452,61180.0,61179.0,0.095919]
[1728010039909,0.286452,61180.0,61179.0,0.095919]
[1728010040641,0.04863,61180.0,61179.0,0.095919]
[1728010041528,0.186452,61180.0,61179.0,0.095919]
[1728010041967,0.172452,61180.0,61179.0,0.095919]
[1728010042430,0.186452,61180.0,61179.0,0.095919]
[1728010042635,0.163452,61180.0,61179.0,0.095919]
[1728010042893,0.184452,61180.0,61179.0,0.095919]
[1728010043115,0.172452,61180.0,61179.0,0.095919]
[1728010043554,0.186452,61180.0,61179.0,0.095919]
[1728010043772,0.023,61180.0,61179.0,0.095919]
[1728010044060,0.177452,61180.0,61179.0,0.095919]
[1728010044276,0.184452,61180.0,61179.0,0.095919]
[1728010044714,0.19608088,61180.0,61179.0,0.095919]
[1728010045181,0.21008088,61180.0,61179.0,0.095919]
[1728010045397,0.19608088,61180.0,61179.0,0.095919]
[1728010045613,0.21008088,61180.0,61179.0,0.095919]
[1728010046977,0.184452,61180.0,61179.0,0.095919]
[1728010047218,0.177452,61180.0,61179.0,0.095919]
[1728010047679,0.184452,61180.0,61179.0,0.095919]
[1728010047911,0.170452,61180.0,61179.0,0.095919]
[1728010048338,0.184452,61180.0,61179.0,0.095919]
[1728010049005,0.021,61180.0,61179.0,0.173019]
[1728010049226,0.007,61180.0,61179.0,0.173019]
[1728010049446,0.013,61180.0,61179.0,0.173019]
[1728010049670,0.019,61180.0,61179.0,0.173019]
[1728010050160,0.019,61180.0,61179.0,0.336473]
[1728010050439,0.013,61180.0,61179.0,0.336473]
[1728010050648,0.013,61180.0,61179.0,0.173019]
[1728010050859,0.176452,61180.0,61179.0,0.173019]
[1728010051302,0.163452,61180.0,61179.0,0.173019]
[1728010051511,0.169452,61180.0,61179.0,0.173019]
[1728010051950,0.182452,61180.0,61179.0,0.173019]
[1728010052168,0.182452,61180.0,61179.0,0.336473]
[1728010052169,0.006,61180.0,61179.0,0.336473]
[1728010052804,0.001638,61183.0,61181.0,0.0951]
[1728010053709,0.163446,61182.0,61181.0,0.0951]
[1728010055482,0.168446,61182.0,61181.0,0.0951]
[1728010056331,0.168446,61182.0,61181.0,0.0961]
[1728010056796,0.005,61182.0,61181.0,0.0961]
[1728010057848,0.03062792,61182.0,61181.0,0.0961]
[1728010058287,0.19407392,61182.0,61181.0,0.0961]
[1728010058957,0.03062792,61182.0,61181.0,0.0961]
[1728010060981,0.03062792,61182.0,61181.0,0.259549]
[1728010061193,0.005,61182.0,61181.0,0.259549]
[1728010061420,0.005,61182.0,61181.0,0.340249]
[1728010064478,0.0306264,61182.0,61181.0,0.340249]
[1728010067745,0.001638,61183.0,61182.0,0.341046]
[1728010068869,0.001638,61190.0,61189.0,0.53004435]
[1728010069359,0.24468224,61202.0,61190.0,0.163425]
[1728010069594,0.24468224,61202.0,61190.0,0.339325]
[1728010069838,0.24468224,61202.0,61190.0,0.362325]
[1728010070047,0.24468224,61202.0,61201.0,0.53001235]
[1728010070506,0.163378,61208.0,61202.0,0.0974]
[1728010070728,0.163378,61208.0,61204.0,0.0974]
[1728010071697,0.326736,61212.0,61207.0,0.0974]
[1728010071938,0.326736,61212.0,61207.0,0.26404629]
[1728010071939,0.163366,61212.0,61207.0,0.26404629]
[1728010072389,0.012,61208.0,61207.0,0.26404629]
[1728010072627,0.1,61213.0,61207.0,0.10066729]
[1728010072857,0.1,61212.0,61207.0,0.0974]
[1728010073076,0.163377,61208.0,61207.0,0.0984]
[1728010073317,0.163377,61208.0,61207.0,0.0974]
[1728010074274,0.24468224,61225.0,61216.0,0.339255]
[1728010074519,0.24468224,61225.0,61216.0,0.55297135]
[1728010075008,0.24468224,61225.0,61216.0,0.52997135]
[1728010075463,0.24468224,61224.0,61216.0,0.339255]
[1728010076579,0.24468224,61224.0,61216.0,0.346255]
[1728010077487,0.24468224,61224.0,61216.0,0.339255]
[1728010078192,0.02561019,61225.0,61216.0,0.339255]
[1728010078688,0.02561019,61225.0,61216.0,0.344255]
[1728010079115,0.000819,61226.0,61216.0,0.342255]
[1728010079374,0.000819,61226.0,61216.0,0.339255]
[1728010079594,0.002638,61217.0,61216.0,0.347255]
[1728010079813,0.002638,61217.0,61216.0,0.268755]
[1728010080036,0.001638,61217.0,61216.0,0.260755]
[1728010080256,0.001638,61217.0,61216.0,0.263755]
[1728010080675,0.004638,61217.0,61216.0,0.263755]
[1728010081132,0.001638,61217.0,61216.0,0.263755]
[1728010081353,0.004638,61217.0,61216.0,0.263755]
[1728010081795,0.001638,61217.0,61216.0,0.263755]
[1728010082011,0.004638,61217.0,61216.0,0.263755]
[1728010082538,0.004638,61217.0,61216.0,0.260755]
[1728010082753,0.004638,61217.0,61216.0,0.268755]
[1728010083211,0.004638,61217.0,61216.0,0.260755]
[1728010083648,0.004638,61217.0,61216.0,0.263755]
[1728010083867,0.001638,61217.0,61216.0,0.263755]
[1728010084116,0.004638,61217.0,61216.0,0.260755]
[1728010084331,0.004638,61217.0,61216.0,0.268755]
[1728010084332,0.001638,61217.0,61216.0,0.268755]
[1728010084777,0.001638,61217.0,61216.0,0.271755]
[1728010085039,0.001638,61217.0,61216.0,0.268755]
[1728010085277,0.167991,61217.0,61216.0,0.008]
[1728010085520,0.004638,61217.0,61216.0,0.171355]
[1728010085752,0.004638,61217.0,61216.0,0.16962172]
[1728010086213,0.004638,61217.0,61216.0,0.17262172]
[1728010086695,0.004638,61217.0,61216.0,0.00626672]
[1728010086930,0.006638,61217.0,61216.0,0.00626672]
[1728010087160,0.003638,61217.0,61216.0,0.00326672]
[1728010087402,0.02925009,61217.0,61216.0,0.00326672]
[1728010087661,0.02725009,61217.0,61215.0,0.163357]
[1728010087891,0.04125009,61217.0,61216.0,0.001]
[1728010088359,0.04125009,61217.0,61215.0,0.163357]
[1728010088360,0.02725009,61217.0,61215.0,0.163357]
[1728010088597,0.03525009,61217.0,61216.0,0.256555]
[1728010088859,0.02725009,61217.0,61216.0,0.335755]
[1728010089096,0.02925009,61217.0,61216.0,0.335755]
[1728010089334,0.03525009,61217.0,61216.0,0.336755]
[1728010090517,0.03525009,61217.0,61216.0,0.338755]
[1728010090977,0.02725009,61217.0,61216.0,0.337755]
[1728010091211,0.03125009,61217.0,61216.0,0.337755]
[1728010091447,0.005638,61217.0,61216.0,0.337755]
[1728010091685,0.001638,61217.0,61216.0,0.337755]
[1728010091925,0.005638,61217.0,61216.0,0.337755]
[1728010092151,0.005638,61217.0,61216.0,0.335755]
[1728010092385,0.005638,61217.0,61216.0,0.337755]
[1728010093356,0.005638,61217.0,61216.0,0.335755]
[1728010093583,0.001638,61217.0,61216.0,0.340755]
[1728010094280,0.001638,61217.0,61216.0,0.341755]
[1728010094476,0.001638,61217.0,61216.0,0.340755]
[1728010094974,0.001638,61217.0,61216.0,0.341755]
[1728010095237,0.001638,61217.0,61216.0,0.335755]
[1728010095468,0.002638,61217.0,61216.0,0.341755]
[1728010095950,0.001638,61217.0,61216.0,0.335755]
[1728010096176,0.001638,61217.0,61216.0,0.340755]
[1728010096630,0.001638,61217.0,61216.0,0.335755]
[1728010096864,0.001638,61217.0,61216.0,0.336755]
[1728010097088,0.001638,61217.0,61216.0,0.335755]
[1728010097322,0.002638,61217.0,61216.0,0.341755]
[1728010098561,0.001638,61217.0,61216.0,0.336755]
[1728010098797,0.001638,61217.0,61216.0,0.341755]
[1728010099265,0.001638,61217.0,61216.0,0.336755]
[1728010099725,0.002638,61217.0,61216.0,0.341755]
[1728010100175,0.001638,61217.0,61216.0,0.336755]
[1728010100404,0.001638,61217.0,61216.0,0.340755]
[1728010101273,0.001638,61217.0,61216.0,0.341755]
[1728010101547,0.001638,61217.0,61216.0,0.340755]
[1728010101811,0.001638,61217.0,61216.0,0.335755]
[1728010102052,0.002638,61217.0,61216.0,0.341755]
[1728010102533,0.001638,61217.0,61216.0,0.335755]
[1728010102759,0.001638,61217.0,61216.0,0.340755]
[1728010103236,0.001638,61217.0,61216.0,0.335755]
[1728010103458,0.002638,61217.0,61216.0,0.341755]
[1728010103681,0.002638,61217.0,61216.0,0.342755]
[1728010103911,0.002638,61217.0,61216.0,0.341755]
[1728010104831,0.001638,61217.0,61216.0,0.336755]
[1728010105066,0.001638,61217.0,61216.0,0.341755]
[1728010105612,0.001638,61217.0,61216.0,0.336755]
[1728010105701,0.002638,61217.0,61216.0,0.342755]
[1728010111557,0.002638,61217.0,61216.0,0.262555]
[1728010115685,0.002638,61217.0,61216.0,0.38750863]
[1728010119678,0.002638,61217.0,61216.0,0.46610863]
[1728010124289,0.002638,61217.0,61216.0,0.66918724]
[1728010124527,0.002638,61217.0,61216.0,0.79349187]
[1728010124762,0.002638,61217.0,61216.0,0.79793252]
[1728010125213,0.001638,61217.0,61216.0,0.79193252]
[1728010125691,0.000819,61220.0,61219.0,0.002]
[1728010125927,0.000819,61226.0,61225.0,0.48488463]
[1728010126177,0.000819,61226.0,61225.0,0.66509169]
[1728010126407,0.000819,61226.0,61225.0,0.86306181]
[1728010126640,0.000819,61226.0,61225.0,0.86806145]
[1728010126869,0.000819,61226.0,61225.0,0.78696375]
[1728010127114,0.001638,61245.0,61225.0,0.78696375]
[1728010127115,0.001638,61245.0,61232.0,0.002]
[1728010127345,0.001638,61245.0,61234.0,0.360243]
[1728010127346,0.24468224,61238.0,61234.0,0.360243]
[1728010127581,0.001638,61245.0,61234.0,0.58446769]
[1728010127793,0.001638,61245.0,61234.0,0.65171758]
[1728010128250,0.001638,61245.0,61234.0,0.64971758]
[1728010128586,0.001638,61245.0,61234.0,0.65171758]
[1728010128709,0.001638,61245.0,61234.0,0.63469723]
[1728010129174,0.001638,61245.0,61234.0,0.63269723]
[1728010129416,0.001638,61245.0,61234.0,0.63469723]
[1728010129657,0.002819,61235.0,61234.0,0.65669723]
[1728010129901,0.002819,61235.0,61234.0,0.65469723]
[1728010130133,0.002819,61235.0,61234.0,0.65669723]
[1728010130377,0.001819,61235.0,61234.0,0.64269723]
[1728010130605,0.001819,61235.0,61234.0,0.49151052]
[1728010131086,0.001819,61235.0,61234.0,0.279307]
[1728010131087,0.000819,61235.0,61234.0,0.279307]
[1728010131345,0.001819,61235.0,61234.0,0.270307]
[1728010132539,0.002819,61235.0,61234.0,0.278307]
[1728010132790,0.000819,61235.0,61234.0,0.256307]
[1728010133023,0.000819,61235.0,61234.0,0.272307]
[1728010133467,0.000819,61235.0,61234.0,0.258307]
[1728010133713,0.000819,61235.0,61234.0,0.264307]
[1728010133935,0.000819,61235.0,61234.0,0.26757246]
[1728010134862,0.000819,61235.0,61234.0,0.264307]
[1728010138346,0.000819,61235.0,61234.0,0.26757236]
[1728010139577,0.000819,61235.0,61234.0,0.264307]
[1728010139790,0.000819,61235.0,61234.0,0.26757237]
[1728010140752,0.000819,61235.0,61234.0,0.264307]
[1728010141204,0.000819,61235.0,61234.0,0.26757237]
[1728010142123,0.000819,61235.0,61234.0,0.264307]
[1728010143505,0.000819,61235.0,61234.0,0.171307]
[1728010144024,0.000819,61235.0,61234.0,0.17228375]
[1728010144249,0.000819,61235.0,61234.0,0.26458375]
[1728010144930,0.000819,61235.0,61234.0,0.2668722]
[1728010146841,0.000819,61235.0,61234.0,0.263607]
[1728010147322,0.000819,61235.0,61234.0,0.26687226]
[1728010148449,0.000819,61235.0,61234.0,0.44979371]
[1728010148923,0.16550109,61246.0,61245.0,0.163278]
[1728010149411,0.0815,61248.0,61242.0,0.326569]
[1728010149630,0.0815,61248.0,61247.0,0.163273]
[1728010150553,0.083138,61252.0,61250.0,0.163263]
[1728010150779,0.083138,61252.0,61250.0,0.16652797]
[1728010151016,0.083138,61252.0,61248.0,0.163268]
[1728010151238,0.083138,61252.0,61249.0,0.00326498]
[1728010151982,0.089138,61252.0,61250.0,0.001]
[1728010152204,0.103138,61252.0,61250.0,0.001]
[1728010152430,0.097138,61252.0,61251.0,0.163262]
[1728010152877,0.103138,61252.0,61249.0,0.164265]
[1728010153104,0.103138,61252.0,61249.0,0.001]
[1728010153333,0.163265,61250.0,61249.0,0.001]
[1728010153557,0.103138,61252.0,61249.0,0.001]
[1728010153558,0.266399,61252.0,61249.0,0.001]
[1728010153777,0.266397,61252.0,61249.0,0.001]
[1728010153999,0.252397,61252.0,61249.0,0.001]
[1728010154247,0.260397,61252.0,61249.0,0.001]
[1728010154477,0.249397,61252.0,61247.0,0.163272]
[1728010154939,0.259397,61252.0,61249.0,0.001]
[1728010155163,0.259397,61252.0,61247.0,0.163272]
[1728010155410,0.115138,61252.0,61249.0,0.002]
[1728010155666,0.096138,61252.0,61249.0,0.163266]
[1728010155934,0.109138,61252.0,61247.0,0.164272]
[1728010156148,0.109138,61252.0,61247.0,0.002]
[1728010156149,0.115138,61252.0,61247.0,0.002]
[1728010156366,0.115138,61252.0,61249.0,0.163266]
[1728010157256,0.083138,61252.0,61249.0,0.163266]
[1728010157480,0.089138,61252.0,61249.0,0.164266]
[1728010157707,0.102138,61252.0,61249.0,0.164266]
[1728010158165,0.115138,61252.0,61249.0,0.165266]
[1728010158900,0.115138,61252.0,61250.0,0.163263]
[1728010159125,0.115138,61252.0,61249.0,0.002]
[1728010159126,0.14073715,61252.0,61249.0,0.002]
[1728010160325,0.083138,61252.0,61248.0,0.163269]
[1728010160545,0.089138,61252.0,61250.0,0.001]
[1728010160765,0.102138,61252.0,61250.0,0.002]
[1728010160990,0.102138,61252.0,61250.0,0.001]
[1728010161207,0.109138,61252.0,61249.0,0.164267]
[1728010161427,0.102138,61252.0,61249.0,0.164267]
[1728010161886,0.109138,61252.0,61250.0,0.001]
[1728010162129,0.083138,61252.0,61249.0,0.163267]
[1728010162792,0.089138,61252.0,61250.0,0.001]
[1728010163012,0.089138,61252.0,61250.0,0.164264]
[1728010163484,0.102138,61252.0,61250.0,0.164264]
[1728010163701,0.089138,61252.0,61250.0,0.164264]
[1728010163927,0.089138,61252.0,61250.0,0.002]
[1728010164167,0.096138,61252.0,61250.0,0.001]
[1728010164415,0.265399,61252.0,61250.0,0.001]
[1728010164631,0.243399,61252.0,61250.0,0.001]
[1728010164851,0.224399,61252.0,61247.0,0.163272]
[1728010165070,0.2244,61252.0,61250.0,0.001]
[1728010165320,0.2434,61252.0,61250.0,0.002]
[1728010165727,0.2374,61252.0,61250.0,0.001]
[1728010165966,0.238218,61252.0,61250.0,0.001]
[1728010166427,0.225218,61252.0,61247.0,0.163273]
[1728010166666,0.238218,61252.0,61250.0,0.001]
[1728010167149,0.238218,61252.0,61247.0,0.163273]
[1728010167370,0.087956,61252.0,61250.0,0.001]
[1728010167595,0.074956,61252.0,61247.0,0.163271]
[1728010167818,0.093956,61252.0,61250.0,0.001]
[1728010168031,0.244216,61252.0,61250.0,0.001]
[1728010168261,0.238216,61252.0,61247.0,0.163271]
[1728010168480,0.238216,61252.0,61247.0,0.165271]
[1728010168481,0.257216,61252.0,61247.0,0.165271]
[1728010168917,0.251216,61252.0,61247.0,0.164271]
[1728010169357,0.257216,61252.0,61250.0,0.001]
[1728010169805,0.067956,61252.0,61250.0,0.001]
[1728010170030,0.080956,61252.0,61250.0,0.002]
[1728010170484,0.080956,61252.0,61250.0,0.164263]
[1728010170732,0.093956,61252.0,61250.0,0.165263]
[1728010170959,0.087956,61252.0,61250.0,0.164263]
[1728010171177,0.093956,61252.0,61250.0,0.001]
[1728010171618,0.087956,61252.0,61250.0,0.001]
[1728010172291,0.093956,61252.0,61250.0,0.002]
[1728010177226,0.093956,61252.0,61250.0,0.165265]
[1728010179106,0.093956,61252.0,61250.0,0.166903]
[1728010183034,0.032818,61252.0,61250.0,0.166903]
[1728010183490,0.032818,61252.0,61250.0,0.262603]
[1728010184380,0.08185338,61252.0,61250.0,0.262603]
[1728010184628,0.032818,61252.0,61250.0,0.262603]
[1728010185364,0.10745271,61252.0,61250.0,0.262603]
[1728010185812,0.10745271,61252.0,61250.0,0.003638]
[1728010186051,0.10745271,61252.0,61250.0,0.166902]
[1728010186530,0.08185338,61252.0,61250.0,0.166902]
[1728010187430,0.07355307,61251.0,61250.0,0.003638]
[1728010187681,0.10637107,61252.0,61250.0,0.003638]
[1728010187905,0.049031,61251.0,61250.0,0.003638]
[1728010188571,0.04902836,61251.0,61250.0,0.003638]
[1728010189267,0.04902836,61251.0,61250.0,0.001638]
[1728010189529,0.22429036,61251.0,61250.0,0.002638]
[1728010189765,0.22429036,61251.0,61250.0,0.003638]
[1728010189766,0.36370436,61251.0,61250.0,0.003638]
[1728010189980,0.38821854,61251.0,61250.0,0.003638]
[1728010190491,0.50708419,61251.0,61250.0,0.002638]
[1728010190977,0.47548437,61251.0,61250.0,0.002638]
[1728010191233,0.48948437,61251.0,61250.0,0.003638]
[1728010192411,0.46948437,61251.0,61250.0,0.001638]
[1728010192652,0.47748437,61251.0,61250.0,0.002638]
[1728010192868,0.49148437,61251.0,61250.0,0.002638]
[1728010193597,0.59148437,61251.0,61250.0,0.002638]
[1728010194343,0.59149969,61251.0,61250.0,0.002638]
[1728010194603,0.49342765,61251.0,61250.0,0.002638]
[1728010194850,0.64051273,61251.0,61250.0,0.002638]
[1728010195081,0.49342765,61251.0,61250.0,0.002638]
[1728010195763,0.360562,61251.0,61250.0,0.001638]
[1728010196009,0.49742765,61251.0,61250.0,0.002638]
[1728010196281,0.48342765,61251.0,61250.0,0.002638]
[1728010196513,0.47342765,61251.0,61250.0,0.001638]
[1728010196759,0.63235876,61251.0,61250.0,0.002638]
[1728010197000,0.64635876,61251.0,61250.0,0.002638]
[1728010197475,0.49942765,61251.0,61250.0,0.002638]
[1728010197772,0.49742765,61251.0,61250.0,0.002638]
[1728010199441,0.49742765,61251.0,61250.0,0.001638]
[1728010199442,0.48542765,61251.0,61250.0,0.001638]
[1728010199902,0.49942765,61251.0,61250.0,0.001638]
[1728010201278,0.6217772,61251.0,61250.0,0.001638]
[1728010201995,0.64738006,61251.0,61250.0,0.001638]
[1728010202240,0.52503051,61251.0,61250.0,0.001638]
[1728010202489,0.31686486,61251.0,61250.0,0.001638]
[1728010202708,0.36466111,61251.0,61250.0,0.001638]
[1728010202933,0.36466111,61251.0,61250.0,0.100738]
[1728010203375,0.291262,61251.0,61250.0,0.100738]
[1728010203619,0.36466111,61251.0,61250.0,0.100738]
[1728010203869,0.291262,61251.0,61250.0,0.100738]
[1728010204383,0.291262,61251.0,61250.0,0.001638]
[1728010204608,0.46883736,61251.0,61250.0,0.001638]
[1728010204834,0.370962,61251.0,61250.0,0.001638]
[1728010205520,0.372962,61251.0,61250.0,0.001638]
[1728010205970,0.39856533,61251.0,61250.0,0.001638]
[1728010206414,0.4840361,61251.0,61250.0,0.001638]
[1728010206633,0.6063222,61251.0,61250.0,0.001638]
[1728010206858,0.51885143,61251.0,61250.0,0.001638]
[1728010207321,0.39856533,61251.0,61250.0,0.001638]
[1728010207579,0.39656533,61251.0,61250.0,0.001638]
[1728010208498,0.39856533,61251.0,61250.0,0.001638]
[1728010208729,0.39656533,61251.0,61250.0,0.001638]
[1728010209659,0.53400744,61251.0,61250.0,0.001638]
[1728010209881,0.53600744,61251.0,61250.0,0.001638]
[1728010210341,0.53600744,61251.0,61246.0,0.001636]
[1728010210342,0.46783865,61247.0,61246.0,0.001636]
[1728010211247,0.263273,61247.0,61246.0,0.001636]
[1728010211494,0.33659216,61247.0,61246.0,0.001636]
[1728010211739,0.33659216,61247.0,61246.0,0.002636]
[1728010211740,0.274273,61247.0,61246.0,0.002636]
[1728010211968,0.32315256,61247.0,61246.0,0.002636]
[1728010212186,0.33715256,61247.0,61246.0,0.002636]
[1728010212889,0.288273,61247.0,61246.0,0.002636]
[1728010216456,0.33715256,61247.0,61246.0,0.002636]
[1728010217254,0.3371497,61247.0,61246.0,0.002636]
[1728010217673,0.36275348,61247.0,61246.0,0.002636]
[1728010218360,0.36275291,61247.0,61246.0,0.002636]
[1728010218573,0.33714913,61247.0,61246.0,0.002636]
[1728010220665,0.33715436,61247.0,61246.0,0.002636]
[1728010223665,0.288273,61247.0,61246.0,0.002636]
[1728010225744,0.366973,61247.0,61246.0,0.002636]
[1728010226006,0.44031448,61247.0,61246.0,0.002636]
[1728010227829,0.366973,61247.0,61246.0,0.002636]
[1728010228085,0.368973,61247.0,61246.0,0.002636]
[1728010229023,0.35917601,61247.0,61246.0,0.002636]
[1728010229252,0.37317601,61247.0,61246.0,0.002636]
[1728010229484,0.52236272,61247.0,61246.0,0.002636]
[1728010229715,0.52236272,61247.0,61246.0,0.001636]
[1728010229716,0.53436272,61247.0,61246.0,0.001636]
[1728010229953,0.58597047,61247.0,61246.0,1e-06]
[1728010230180,0.71337257,61247.0,61246.0,1e-06]
[1728010230426,0.54836272,61247.0,61246.0,1e-06]
[1728010230875,0.53436272,61247.0,61246.0,1e-06]
[1728010231118,0.53236272,61247.0,61246.0,1e-06]
[1728010231360,0.56036272,61247.0,61246.0,1e-06]
[1728010231597,0.54836272,61247.0,61246.0,1e-06]
[1728010232064,0.56236272,61247.0,61246.0,1e-06]
[1728010232844,0.56036272,61247.0,61246.0,1e-06]
[1728010233356,0.58797081,61247.0,61246.0,1e-06]
[1728010233584,0.4247841,61247.0,61246.0,1e-06]
[1728010236902,0.39917601,61247.0,61246.0,1e-06]
[1728010239536,0.37417601,61247.0,61246.0,1e-06]
[1728010239766,0.37617601,61247.0,61246.0,1e-06]
[1728010240251,0.40178313,61247.0,61246.0,1e-06]
[1728010240483,0.37617601,61247.0,61246.0,1e-06]
[1728010240956,0.52078124,61247.0,61246.0,1e-06]
[1728010241196,0.291273,61247.0,61246.0,1e-06]
[1728010241458,0.291273,61247.0,61246.0,0.090401]
[1728010241459,0.26458936,61247.0,61246.0,0.090401]
[1728010241702,0.191273,61247.0,61246.0,0.173201]
[1728010242397,0.177273,61247.0,61246.0,0.173201]
[1728010242645,0.191273,61247.0,61246.0,0.090401]
[1728010242903,0.277273,61247.0,61246.0,0.090401]
[1728010243159,0.276273,61247.0,61246.0,0.090401]
[1728010243386,0.290273,61247.0,61246.0,0.090401]
[1728010243855,0.30187597,61247.0,61246.0,0.090401]
[1728010244092,0.30787597,61247.0,61246.0,0.090401]
[1728010246954,0.49082465,61247.0,61246.0,1e-06]
[1728010247175,0.367473,61247.0,61246.0,1e-06]
[1728010247415,0.365473,61247.0,61246.0,1e-06]
[1728010247649,0.359473,61247.0,61246.0,1e-06]
[1728010247886,0.361473,61247.0,61246.0,1e-06]
[1728010248110,0.362473,61247.0,61246.0,1e-06]
[1728010248349,0.360473,61247.0,61246.0,1e-06]
[1728010248576,0.374473,61247.0,61246.0,1e-06]
[1728010248820,0.360473,61247.0,61246.0,1e-06]
[1728010249097,0.374473,61247.0,61246.0,1e-06]
[1728010249327,0.36468208,61247.0,61246.0,1e-06]
[1728010249774,0.37868208,61247.0,61246.0,1e-06]
[1728010250205,0.4042875,61247.0,61246.0,1e-06]
[1728010250949,0.4051065,61247.0,61246.0,1e-06]
[1728010251413,0.37950108,61247.0,61246.0,1e-06]
[1728010256031,0.40510633,61247.0,61246.0,1e-06]
[1728010256254,0.37950108,61247.0,61246.0,1e-06]
[1728010256690,0.38150108,61247.0,61246.0,1e-06]
[1728010257552,0.37950108,61247.0,61246.0,1e-06]
[1728010257993,0.38150108,61247.0,61246.0,1e-06]
[1728010258468,0.54268779,61247.0,61246.0,1e-06]
[1728010258718,0.56829309,61247.0,61246.0,1e-06]
[1728010259865,0.54268779,61247.0,61246.0,1e-06]
[1728010261222,0.54468779,61247.0,61246.0,1e-06]
[1728010261681,0.54268779,61247.0,61246.0,1e-06]
[1728010264498,0.56829303,61247.0,61246.0,1e-06]
[1728010264989,0.40510632,61247.0,61246.0,1e-06]
[1728010266683,0.40710632,61247.0,61246.0,1e-06]
[1728010266942,0.54657486,61247.0,61246.0,1e-06]
[1728010267203,0.265302,61236.0,61235.0,0.24468224]
[1728010267938,0.163326,61227.0,61225.0,0.0915]
[1728010268187,0.38819165,61227.0,61225.0,0.0915]
[1728010268418,0.51050473,61227.0,61226.0,0.001636]
[1728010268914,0.46959165,61227.0,61226.0,0.001636]
[1728010269146,0.49759165,61227.0,61226.0,0.001636]
[1728010269611,0.48559165,61227.0,61226.0,0.001636]
[1728010269856,0.6324067,61227.0,61226.0,0.001636]
[1728010270120,0.65602107,61227.0,61226.0,0.001636]
[1728010270369,0.50920602,61227.0,61226.0,0.001636]
[1728010270616,0.49520602,61227.0,61226.0,0.001636]
[1728010270913,0.65839273,61227.0,61226.0,0.001636]
[1728010271133,0.49759165,61227.0,61226.0,0.001636]
[1728010271387,0.38819165,61227.0,61226.0,0.001636]
[1728010271594,0.40219165,61227.0,61226.0,0.093136]
[1728010271812,0.41619165,61227.0,61226.0,0.093136]
[1728010272268,0.49992193,61227.0,61226.0,0.093136]
[1728010272518,0.41619165,61227.0,61226.0,0.093136]
[1728010272747,0.48948384,61227.0,61226.0,0.093136]
[1728010272986,0.291326,61227.0,61226.0,0.093136]
[1728010273214,0.46504973,61227.0,61226.0,0.093136]
[1728010273697,0.34018426,61227.0,61226.0,0.093136]
[1728010273931,0.277326,61227.0,61226.0,0.093136]
[1728010274165,0.34018426,61227.0,61226.0,0.093136]
[1728010275572,0.291326,61227.0,61226.0,0.093136]
[1728010275813,0.34018426,61227.0,61226.0,0.093136]
[1728010276047,0.291326,61227.0,61226.0,0.093136]
[1728010276758,0.34018426,61227.0,61226.0,0.093136]
[1728010276977,0.291326,61227.0,61226.0,0.093136]
[1728010277242,0.34018426,61227.0,61226.0,0.093136]
[1728010277471,0.291326,61227.0,61226.0,0.093136]
[1728010278909,0.29549039,61227.0,61226.0,0.093136]
[1728010279845,0.32110274,61227.0,61226.0,0.093136]
[1728010280752,0.29549039,61227.0,61226.0,0.093136]
[1728010284022,0.291326,61227.0,61226.0,0.093136]
[1728010285498,0.277326,61227.0,61226.0,0.093136]
[1728010285731,0.291326,61227.0,61226.0,0.093136]
[1728010286215,0.277326,61227.0,61226.0,0.093136]
[1728010286466,0.291326,61227.0,61226.0,0.093136]
[1728010286949,0.277326,61227.0,61226.0,0.093136]
[1728010287186,0.31493841,61227.0,61226.0,0.093136]
[1728010288401,0.289326,61227.0,61226.0,0.093136]
[1728010290036,0.277326,61227.0,61226.0,0.093136]
[1728010290495,0.275326,61227.0,61226.0,0.093136]
[1728010290742,0.289326,61227.0,61226.0,0.093136]
[1728010290973,0.263326,61227.0,61226.0,0.093136]
[1728010291431,0.32615101,61227.0,61226.0,0.093136]
[1728010291660,0.31215101,61227.0,61226.0,0.093136]
[1728010291875,0.277326,61227.0,61226.0,0.093136]
[1728010292098,0.31215786,61227.0,61226.0,0.093136]
[1728010292541,0.277326,61227.0,61226.0,0.093136]
[1728010292797,0.40245986,61227.0,61226.0,0.001636]
[1728010293016,0.41645986,61227.0,61226.0,0.001636]
[1728010293260,0.51610989,61227.0,61226.0,0.001636]
[1728010293505,0.40445986,61227.0,61226.0,0.001636]
[1728010293735,0.6251429,61227.0,61226.0,0.001636]
[1728010294206,0.6411429,61227.0,61226.0,0.001636]
[1728010295113,0.6667565,61227.0,61226.0,0.001636]
[1728010295354,0.6647565,61227.0,61226.0,0.001636]
[1728010295673,0.53962264,61227.0,61226.0,0.001636]
[1728010296802,0.51400904,61227.0,61226.0,0.001636]
[1728010299609,0.48963437,61227.0,61226.0,0.001636]
[1728010300064,0.41635901,61227.0,61226.0,0.001636]
[1728010300291,0.48963437,61227.0,61226.0,0.001636]
[1728010300559,0.48963734,61227.0,61226.0,0.001636]
[1728010300782,0.47563734,61227.0,61226.0,0.001636]
[1728010301245,0.50125087,61227.0,61226.0,0.001636]
[1728010301472,0.48725087,61227.0,61226.0,0.001636]
[1728010301696,0.47563734,61227.0,61226.0,0.001636]
[1728010302157,0.40235901,61227.0,61226.0,0.001636]
[1728010302396,0.57718919,61227.0,61226.0,0.001636]